Cogmind - Beta 9.2 @@@ ROGUE MODE // 2019.12.15 @ 19:21:31 Player: Cassie Rose Result: Self-destructed Performance ------------- Evolutions (1) 500 Regions Visited (2) 400 Robots Destroyed (14) 70 Value Destroyed (250) 250 Prototype IDs (0) 0 Alien Tech Used (0) 0 Bonus (0) 0 TOTAL SCORE: 1220 Bonus ------- None Cogmind --------- Core Integrity 140/400 Matter 275/300 Energy 49/100 System Corruption 0% Temperature Cool (0) Movement Core (150) Ox2 Location -9/Materials Parts ------- > --- POWER (1) -------- (None) > --- PROPULSION (3) --- (None) > --- UTILITY (3) ------ Medium Storage Unit Improved Terrain Scanner Seismic Analyzer > --- WEAPON (2) ------- (None) > --- INVENTORY (8) ---- (None) Peak State ------------ > --- POWER ------------ Light Ion Engine > --- PROPULSION ------- Improved Hover Unit Improved Hover Unit Improved Hover Unit > --- UTILITY ---------- Medium Storage Unit Improved Terrain Scanner Seismic Analyzer > --- WEAPON ----------- Spread Laser Spread Laser > --- INVENTORY -------- (None) [Rating: 15] Favorites ----------- Power Light Ion Engine Engine Light Ion Engine Propulsion Improved Hover Unit Wheel Compact Wheel Hover Unit Improved Hover Unit Utility Seismic Analyzer Device Improved Terrain Scanner Storage Medium Storage Unit Processor Seismic Analyzer Weapon EM Pulse Gun Energy Gun EM Pulse Gun Build | -11 -10 -9 ------- Run | Scr Mat Mat Slots Evolved 2 | . . 2 Power . | . . . Propulsion 1 | . . 1 Utility 1 | . . 1 Weapon . | . . . Parts Attached 17 | 7 3 7 Power 2 | 1 1 . Engine 2 | 1 1 . Core . | . . . Reactor . | . . . Propulsion 7 | 2 2 3 Treads . | . . . Leg . | . . . Wheel 2 | 2 . . Hover 5 | . 2 3 Flight . | . . . Utility 4 | 2 . 2 Device 2 | 1 . 1 Storage 1 | . . 1 Processor 1 | 1 . . Hackware . | . . . Protection . | . . . Artifact . | . . . Weapon 4 | 2 . 2 Energy Gun 4 | 2 . 2 Energy Cannon . | . . . Ballistic Gun . | . . . Ballistic Cannon . | . . . Launcher . | . . . Special Weapon . | . . . Impact Weapon . | . . . Slashing Weapon . | . . . Piercing Weapon . | . . . Special Melee Weapon . | . . . Unidentified Prototypes . | . . . Parts Lost 11 | . . 11 Power 1 | . . 1 Propulsion 5 | . . 5 Utility 1 | . . 1 Weapon 4 | . . 4 Highest Loss Streak 11 | . . 11 Average Slot Usage (%) 86 | . 100 76 Engine 11 | . 14 9 Hover 27 | . 26 27 Device 11 | . 14 9 Processor 12 | . 14 11 Energy Gun 21 | . 28 17 Naked Turns . | . . . Heaviest Build 9 | 8 8 9 Greatest Support 32 | 32 32 24 Greatest Overweight (x) 2 | 1 . 2 Average Overweight (x) . | . . . Largest Inventory Capacity 8 | 4 4 8 Average Capacity 4 | 4 4 4 Most Carried 4 | 2 4 4 Average Carried 3 | . 3 3 Final Capacity 8 | 4 4 8 Final Carried 4 | 1 4 . Class Distribution -------------------- 100% | Mutant Dominant Class ---------------- Mutant | -10/Materials Mutant | -9/Materials Resources | -11 -10 -9 ----------- Run | Scr Mat Mat Matter Collected 310 | 270 30 10 Remotely . | . . . Salvage Created 534 | 131 210 193 Parts 31 | 8 14 9 Haulers Intercepted 2 | . 1 1 Recyclers Shooed . | . . . Parts Field Recycled . | . . . Retrieved Matter . | . . . Parts Self-Destructed . | . . . Prevented . | . . . Kills | -11 -10 -9 ------- Run | Scr Mat Mat Combat Hostiles Destroyed 8 | . 3 5 Guns 7 | . 3 4 AOE 1 | . . 1 Classes Destroyed 6 | 2 3 1 Tunneler 2 | 2 . . Hauler 2 | . 1 1 Recycler 1 | 1 . . Operator 1 | . 1 . Swarmer 3 | . . 3 Grunt 5 | . 3 2 Best Kill Streak 3 | 3 2 3 Combat Bots Only 3 | . 2 3 Max Kills in Single Turn 1 | 1 1 1 Gunslinging . | . . . Exploded 1 | . . 1 Melee . | . . . Uniques/NPCs Destroyed . | . . . Combat | -11 -10 -9 -------- Run | Scr Mat Mat Damage Taken 836 | . 52 784 Core 270 | . 10 260 Absorbed by Shields . | . . . Core Remaining (%) 98 | 100 96 . Volleys Fired 36 | 3 14 19 Largest 2 | 2 2 2 Hottest 130 | 80 80 130 Shots Fired 69 | 6 28 35 Gun 69 | 6 28 35 Cannon . | . . . Launcher . | . . . Special . | . . . Kinetic . | . . . Thermal 4 | . . 4 Explosive . | . . . Electromagnetic 65 | 6 28 31 Robot Hit Streak 5 | 3 3 5 Robot Miss Streak 3 | 1 2 3 Penetration Max . | . . . Secondary Targets 2 | . . 2 Max Gunslinging Chain 1 | . . 1 Shots Hit Robots 41 | 3 16 22 Core Hits 25 | 3 7 15 Critical Hits . | . . . Critical Kills . | . . . Critical Parts Destroyed . | . . . Melee Attacks . | . . . Impact . | . . . Slashing . | . . . Piercing . | . . . Sneak Attacks . | . . . Combat Hostiles . | . . . Follow-up Attacks . | . . . Damage Inflicted 623 | 51 222 350 Guns 514 | 51 222 241 Cannons . | . . . Explosions 109 | . . 109 Melee . | . . . Ramming . | . . . Kinetic . | . . . Thermal 140 | . . 140 Explosive . | . . . Electromagnetic 483 | 51 222 210 Impact . | . . . Slashing . | . . . Piercing . | . . . Highest Corruption . | . . . Average Corruption . | . . . Corruption Purged . | . . . Overload Shots . | . . . Overflow Damage 9 | . . 9 Projectiles . | . . . Explosions 9 | . . 9 Melee . | . . . Knockbacks . | . . . Impact . | . . . Kinetic . | . . . Secondary . | . . . Self-Inflicted Damage 40 | . . 40 Shots 1 | . . 1 Rammed . | . . . Targets Rammed . | . . . Kicked . | . . . Crushed . | . . . Highest Temperature 178 | 18 114 178 Average Temperature 46 | 12 40 54 Received Heat Transfer 378 | . 18 360 Siege Activations . | . . . Robots Corrupted . | . . . Combat Hostiles . | . . . Parts Fried 1 | . 1 . Impact Corruptions . | . . . Robots Melted . | . . . Combat Hostiles . | . . . Parts Melted . | . . . Heat Transferred 235 | . . 235 Parts Sabotaged . | . . . Parts Stolen . | . . . Parts Stripped . | . . . Power Chain Reactions 2 | . . 2 Missiles Intercepted . | . . . Alert | -11 -10 -9 ------- Run | Scr Mat Mat Peak Influence 206 | 15 166 206 Average Influence 88 | 5 76 113 Maximum Alert Level 1 | . . 1 Low Security (%) 99 | 100 100 99 Level 1 . | . . . Level 2 . | . . . Level 3 . | . . . Level 4 . | . . . Level 5 . | . . . High Security . | . . . Max Security . | . . . Squads Dispatched 1 | . 1 . Investigation . | . . . Extermination . | . . . Reinforcement 1 | . 1 . Assault . | . . . Garrison . | . . . Intercept . | . . . Construction Impeded . | . . . Haulers Reinforced . | . . . Stealth | -11 -10 -9 --------- Run | Scr Mat Mat Distress Signals 1 | . . 1 Communications Jammed . | . . . Distress Signals . | . . . Times Spotted 20 | . 5 15 Peak Tracking Total 6 | . 1 6 Tactical Retreats 1 | . . 1 Traps | -11 -10 -9 ------- Run | Scr Mat Mat Traps Triggered 1 | . 1 . Indirectly . | . . . Trap Hack Attempts . | . . . Triggered . | . . . Disarmed . | . . . Reprogrammed . | . . . Reused . | . . . Traps Extracted . | . . . Installed . | . . . Triggered . | . . . Machines | -11 -10 -9 ---------- Run | Scr Mat Mat Machines Disabled 1 | . . 1 Max in Single Turn 1 | . . 1 Machines Sabotaged . | . . . Garrisons Compromised . | . . . Overloaded Fab Kills . | . . . Fab Network Shutdowns . | . . . Hacking | -11 -10 -9 --------- Run | Scr Mat Mat Machines Accessed . | . . . Terminals . | . . . Fabricators . | . . . Repair Stations . | . . . Recycling Units . | . . . Scanalyzers . | . . . Garrison Access . | . . . Total Hacks . | . . . Successful . | . . . Failed . | . . . Catastrophic . | . . . Database Lockouts . | . . . Manual . | . . . Terminals . | . . . Fabricators . | . . . Repair Stations . | . . . Recycling Units . | . . . Scanalyzers . | . . . Garrison Access . | . . . Terminal Hacks . | . . . Fabricator Hacks . | . . . Repair Station Hacks . | . . . Recycling Unit Hacks . | . . . Scanalyzer . | . . . Garrison Access Hacks . | . . . Unauthorized Hacks . | . . . Terminals . | . . . Fabricators . | . . . Repair Stations . | . . . Recycling Units . | . . . Scanalyzers . | . . . Garrison Access . | . . . Data Cores Recovered . | . . . Used . | . . . Hacking Detections . | . . . Full Trace Events . | . . . Feedback Events . | . . . Feedback Blocked . | . . . Robot Schematics Acquired . | . . . Robots Built . | . . . Matter . | . . . Time . | . . . Total Robot Build Rating . | . . . Part Schematics Acquired . | . . . Parts Built . | . . . Matter . | . . . Time . | . . . Total Part Build Rating . | . . . Parts Repaired . | . . . Time . | . . . Parts Recycled . | . . . Recycled Matter . | . . . Retrieved Matter . | . . . Retrieved Components . | . . . Parts Scanalyzed . | . . . Part Schematics Acquired . | . . . Parts Damaged . | . . . Bothacking | -11 -10 -9 ------------ Run | Scr Mat Mat Used RIF Installer . | . . . Robots Hacked . | . . . Non-combat . | . . . Combat . | . . . Robot Hacks Applied . | . . . Relay Couplers Released . | . . . Robots Rewired . | . . . Allies Hacked . | . . . Hacks Repelled . | . . . Allies | -11 -10 -9 -------- Run | Scr Mat Mat Total Allies . | . . . Largest Group . | . . . Highest-Rated Group . | . . . Highest-Rated Ally . | . . . Total Orders . | . . . Ally Attacks . | . . . Total Damage . | . . . Kills . | . . . Allies Corrupted . | . . . Allies Melted . | . . . Intel | -11 -10 -9 ------- Run | Scr Mat Mat Robot Analysis Total . | . . . Derelict Logs Recovered . | . . . Drone Launches . | . . . Drone Recoveries . | . . . Exploration | -11 -10 -9 ------------- Run | Scr Mat Mat Turns Passed 613 | 62 232 319 Spaces Moved 670 | 42 289 339 Core 26 | 13 . 13 Treads . | . . . Legs . | . . . Wheels 37 | 29 8 . Hover 607 | . 281 326 Flight . | . . . Fastest Speed 50 | 50 56 52 Average Speed 59 | 92 57 57 Slowest Speed 150 | 100 100 150 Overloaded Moves . | . . . Propulsion Burnouts . | . . . Robots Hopped . | . . . Cave-ins Triggered . | . . . Exploration Rate (%) 27 | 3 40 40 Regions Visited 2 Branch Regions . Pre-discovered Areas . | . . . Known Exits Taken . | . . . Unknown Exits Taken 2 | 1 1 . Scrap Searched . | . . . Spaces Dug . | . . . Terrain Destroyed 8 | . . 8 Melee . | . . . Projectile . | . . . AOE 8 | . . 8 Actions | -11 -10 -9 --------- Run | Scr Mat Mat Total 812 | 59 328 425 Wait 75 | . 15 60 Move 668 | 41 288 339 Hop . | . . . Pick Up 13 | 8 5 . Fast Attach 3 | . . 3 Attach 12 | 7 1 4 Detach . | . . . Swap 2 | . 2 . Drop 3 | . 3 . Fire 36 | 3 14 19 Melee . | . . . Ram . | . . . Kick . | . . . Crush . | . . . Escape Stasis . | . . . Rewire . | . . . Trap . | . . . Miscellaneous . | . . . Route ------- -11/Scrapyard -10/Materials (discovered 2 exits: [*Mat] / [Min]) -9/Materials (discovered 1 exit: [*Min]) History --------- Turn | Location | Event 11 | -11/Scrapyard | Discovered new exit (range 16) 63 | -11/Scrapyard | Entered Materials 77 | -10/Materials | Discovered new exit (range 15) 293 | -10/Materials | Discovered new exit (range 4) 295 | -10/Materials | Entered another Materials area 295 | -9/Materials | Evolved 2 slots: Propulsion x1, Utility x1 307 | -9/Materials | Build established: Mutant 482 | -9/Materials | Discovered new exit (range 6) 597 | -9/Materials | Core integrity fell below 50% 614 | -9/Materials | Self-destructed Last Messages --------------- 00537_ Terminal disabled. 00537_ EM Pulse Gun destroyed. 00537_ Destroyed EM Pulse Gun. 00538_ Imp. Terrain Scanner destroyed. 00540_ G-34 Mercenary misfires. 00541_ Imp. Hover Unit destroyed. 00544_ EM Pulse Gun destroyed. 00544_ R-06 Scavenger collects Sml. Laser. 00546_ U-05 Engineer lays Concrete. 00571_ Acquired Spread Laser. 00572_ Imp. Hover Unit destroyed. 00573_ Acquired Spread Laser. 00574_ Terminal disabled. 00581_ Lgt. Ion Engine destroyed. 00582_ Spread Laser destroyed. 00587_ U-05 Engineer lays Concrete. 00588_ Imp. Hover Unit destroyed. 00594_ U-05 Engineer lays Concrete. 00594_ Imp. Hover Unit destroyed. 00596_ U-05 Engineer lays Concrete. Map ----- +----------------------------------------------------+ | | | ?????????????????????????????????????????????????? | | ?????????????????????????????????????????????????? | | ???#?????????????????????????????????????????????? | | ??????##?????????????????????????????????????????? | | ??????##???#?????????????????????????????????????? | | ???#?????????????????????????????????????????????? | | ?????????????????????????????????????????????????? | | ##????????????#??????????????????????????????????? | | ?#??#????????????#???????????????????????????????? | | ????##???#?????????#??#??????????????????????????? | | ?##??????????#??#????????????????????????????????? | | ###??????????#???#???#??????????????#????????????? | | #?????????#?????#?#????????????????????????????? | | #?????##?##????????????????????????????????????? | | #?????#######???##???????????????#?????????????? | | ####### #??????????????????#???????????????? | | #??##????########? #???????????????? | | #?#??????# #? #????? ?????????? | | #???#????# """ #? #???????????????? | | ######### ##???????# """ #? #???????#???????? | | ??#????### ########### """ #? #?????? #???????? | | ?####????# # T # #? #????? #????#??? | | #?#????#?# # # """ #? #???? #???????? | | #???????## + #! """ ## ##### #???????? | | ???????### # # @""" # #???????? | | ????????## ########### g #???????? | | ??####??## ##?????? ## #gk """ #???????? | | ######### #??###??## # """ +???????? | | #?#?#?#??# "T" # """ #???????? | | T ##???#?#?# """ # #???????? | | ################# #???????? | | ######### = """ # ??????? | | ##???##?####% """ #?? ????? | | ??#???#?#### """ #?? ????? | | ??#??#?#??## +???????? | | ?#?##?#?#??# # ??????? | | ????#?#?#??# " #???????? | | ?#??#?#???# """ """ """ =! T #???????? | | ##?##?#???## """ """ """ !! #???????? | | ?#######?## """ """ """ ! #???????? | | ? #??#?###?# #??#????? | | ?#???#?#??# #####+##???????? | | ? #??##?#??# """ """ """ ""#????? ????????? | | ?????#?#?#?# """ """ """ Y"#?? ???????????? | | ???##??#??## """ """ """ ""#?????? ???????? | | ??########## #??????????????? | | ? #"""""""## #??????????????? | | ??#" |"! "## #######+### #??????????????? | | +##" "## ## + +??????????????? | +----------------------------------------------------+ Best States ------------- Heat Dissipation 28 Energy Generation 10 Energy Capacity 125 Matter Stores 300 Matter Capacity 300 Sight Range 16 Terrain Scan Range 16 Terrain Scan Density 60 Evasion (%) 54 Item Schematics ----------------- None Robot Schematics ------------------ None Fabricated ------------ Nothing Alien Tech Used ----------------- None Achievements -------------- None Challenges ------------ None Game ------ Seed MomentumIntegrityWand Manual? 0 Play Time 00:11:21 Cumulative 61.9 hours Start 2019.12.15 @ 18:44:00 End 2019.12.15 @ 19:21:31 Sessions 1 Manual Loads 0 Difficulty Rogue Special Mode None Game No. 102 Rogue 102 Adventurer 0 Explorer 0 Win Type - Total 0 Types 0/0/0/0/0/0/0 Lore% 22 Gallery% 26 Achievement% 26 Wizard Run 0 Options --------- ASCII 0 Keyboard 0 Movement Mouse Keybinds 0 Fullscreen 1 Font 18/SmallcapsGlow Map View 76x50 Tactical HUD 1 Map Filters NONE Filters LOW_CONTRAST(13,24,33)|BRIGHTNESS(120)|SATURATION(80) Steam 1 RUN: a8b6206c-4440-4b69-87e4-b3070fa29f0b